fUST/lending_fUST_20250411
["ID","MTS","AMOUNT","RATE_DAILY","PERIOD"]
[357682858,1744330247037,-500.0,0.00016438,2]
[357682859,1744330247046,-231.78425738,0.00016438,2]
[357682860,1744330247056,-500.0,0.00016438,2]
[357682861,1744330247066,-510.66989557,0.00016438,2]
[357682862,1744330247076,-517.21541884,0.00016438,2]
[357682863,1744330247086,-642.1562222,0.00016438,2]
[357682864,1744330247096,-500.0,0.00016438,2]
[357682865,1744330247106,-500.0,0.00016438,2]
[357682866,1744330247116,-500.0,0.00016438,2]
[357682867,1744330247126,-500.0,0.00016438,2]
[357682868,1744330247136,-508.15515008,0.00016438,2]
[357682869,1744330247151,-500.0,0.00016438,2]
[357682870,1744330247161,-500.0,0.00016438,2]
[357682871,1744330247171,-500.0,0.00016438,2]
[357682872,1744330247180,-500.0,0.00016438,2]
[357682873,1744330247190,-500.0,0.00016438,2]
[357682874,1744330247200,-500.0,0.00016438,2]
[357682875,1744330247211,-563.11956889,0.00016438,2]
[357682876,1744330247221,-500.0,0.00016438,2]
[357682877,1744330247231,-930.97,0.00016438,2]
[357682878,1744330247242,-500.0,0.00016438,2]
[357682879,1744330247253,-500.0,0.00016438,2]
[357682880,1744330247263,-711.66,0.00016438,2]
[357682881,1744330247273,-511.39234133,0.00016438,2]
[357682882,1744330247283,-500.0,0.00016438,2]
[357682883,1744330247294,-500.0,0.00016438,2]
[357682884,1744330247304,-500.0,0.00016438,2]
[357682885,1744330247314,-512.94515158,0.00016438,2]
[357682886,1744330247324,-1061.87,0.00016438,2]
[357682887,1744330247334,-572.22,0.00016438,2]
[357682888,1744330247343,-500.0,0.00016438,2]
[357682889,1744330247352,-639.11,0.00016438,2]
[357682890,1744330247362,-631.36,0.00016438,2]
[357682891,1744330247372,-500.0,0.00016438,2]
[357682892,1744330247382,-500.0,0.00016438,2]
[357682893,1744330247394,-500.0,0.00016438,2]
[357682894,1744330247405,-500.0,0.00016438,2]
[357682895,1744330247414,-500.0,0.00016438,2]
[357682896,1744330247424,-939.49,0.00016438,2]
[357682897,1744330247434,-500.0,0.00016438,2]
[357682898,1744330247443,-500.0,0.00016438,2]
[357682899,1744330247453,-500.0,0.00016438,2]
[357682900,1744330247463,-500.0,0.00016438,2]
[357682901,1744330247473,-504.97880082,0.00016438,2]
[357682902,1744330247483,-1258.34,0.00016438,2]
[357682903,1744330247493,-500.0,0.00016438,2]
[357682904,1744330247503,-507.92651282,0.00016438,2]
[357682905,1744330247512,-500.0,0.00016438,2]
[357682906,1744330247522,-500.0,0.00016438,2]
[357682907,1744330247532,-482.64166957,0.00016438,2]
[357682908,1744330247542,-500.0,0.00016438,2]
[357682909,1744330247551,-500.0,0.00016438,2]
[357682910,1744330247561,-507.62764384,0.00016438,2]
[357682911,1744330247571,-500.0,0.00016438,2]
[357682912,1744330247581,-343.5967681,0.00016438,2]
[357682913,1744330247590,-500.0,0.00016438,2]
[357682914,1744330247600,-500.0,0.00016438,2]
[357682915,1744330247610,-500.0,0.00016438,2]
[357682916,1744330247619,-502.49983906,0.00016438,2]
[357682917,1744330247629,-500.0,0.00016438,2]
[357682918,1744330247640,-500.0,0.00016438,2]
[357682919,1744330247650,-500.0,0.00016438,2]
[357682920,1744330247660,-504.22515971,0.00016438,2]
[357682921,1744330247670,-500.0,0.00016438,2]
[357682922,1744330247679,-500.0,0.00016438,2]
[357682923,1744330247689,-500.0,0.00016438,2]
[357682924,1744330247699,-500.0,0.00016438,2]
[357682925,1744330247709,-500.0,0.00016438,2]
[357682926,1744330247719,-500.0,0.00016438,2]
[357682927,1744330247728,-500.0,0.00016438,2]
[357682928,1744330247738,-500.0,0.00016438,2]
[357682929,1744330247747,-505.66300375,0.00016438,2]
[357682930,1744330247758,-500.0,0.00016438,2]
[357682931,1744330247768,-151.0,0.00016438,2]
[357682932,1744330247777,-151.0,0.00016438,2]
[357682933,1744330247787,-505.66285216,0.00016438,2]
[357682934,1744330247797,-261.739464,0.00016438,2]
[357682935,1744330247806,-514.70221646,0.00016438,2]
[357682936,1744330247816,-653.44,0.00016438,2]
[357682937,1744330247826,-500.0,0.00016438,2]
[357682938,1744330247837,-541.88,0.00016438,2]
[357682939,1744330247846,-500.0,0.00016438,2]
[357682940,1744330247856,-960.41,0.00016438,2]
[357682941,1744330247865,-500.0,0.00016438,2]
[357682942,1744330247875,-500.0,0.00016438,2]
[357682943,1744330247884,-1570.22,0.00016438,2]
[357682944,1744330247896,-500.0,0.00016438,2]
[357682945,1744330247906,-500.0,0.00016438,2]
[357682946,1744330247917,-500.0,0.00016438,2]
[357682947,1744330247933,-500.0,0.00016438,2]
[357682948,1744330247943,-500.0,0.00016438,2]
[357682949,1744330247953,-500.0,0.00016438,2]
[357682950,1744330247964,-500.0,0.00016438,2]
[357682951,1744330247973,-1080.04,0.00016438,2]
[357682952,1744330248135,-500.77,0.00016438,2]
[357682953,1744330248147,-500.0,0.00016438,2]
[357682954,1744330248158,-500.0,0.00016438,2]
[357682955,1744330248168,-1881.55,0.00016438,2]
[357682956,1744330248178,-500.0,0.00016438,2]
[357682957,1744330248188,-825.29,0.00016438,2]
[357682958,1744330248198,-500.0,0.00016438,2]
[357682959,1744330248208,-500.0,0.00016438,2]
[357682960,1744330248218,-500.0,0.00016438,2]
[357682961,1744330248228,-554.98,0.00016438,2]
[357682962,1744330248238,-1109.01,0.00016438,2]
[357682963,1744330248248,-500.0,0.00016438,2]
[357682964,1744330248258,-500.0,0.00016438,2]
[357682965,1744330248267,-763.2,0.00016438,2]
[357682966,1744330248277,-500.0,0.00016438,2]
[357682967,1744330248286,-500.0,0.00016438,2]
[357682968,1744330248296,-500.0,0.00016438,2]
[357682969,1744330248306,-500.0,0.00016438,2]
[357682970,1744330248315,-716.63,0.00016438,2]
[357682971,1744330248325,-500.0,0.00016438,2]
[357682972,1744330248335,-1239.72,0.00016438,2]
[357682973,1744330248344,-717.6,0.00016438,2]
[357682974,1744330248354,-592.39,0.00016438,2]
[357682975,1744330248363,-582.7,0.00016438,2]
[357682976,1744330248374,-500.0,0.00016438,2]
[357682977,1744330248384,-500.0,0.00016438,2]
[357682978,1744330248395,-500.0,0.00016438,2]
[357682979,1744330248405,-1538.66,0.00016438,2]
[357682980,1744330248414,-500.0,0.00016438,2]
[357682981,1744330248424,-819.86,0.00016438,2]
[357682982,1744330248433,-500.0,0.00016438,2]
[357682983,1744330248443,-500.0,0.00016438,2]
[357682984,1744330248452,-500.0,0.00016438,2]
[357682985,1744330248462,-500.0,0.00016438,2]
[357682986,1744330248471,-500.0,0.00016438,2]
[357682987,1744330248481,-500.0,0.00016438,2]
[357682988,1744330248490,-1492.87,0.00016438,2]
[357682989,1744330248500,-1126.6,0.00016438,2]
[357682990,1744330248509,-500.0,0.00016438,2]
[357682991,1744330248519,-500.0,0.00016438,2]
[357682992,1744330248529,-500.0,0.00016438,2]
[357682993,1744330248539,-500.0,0.00016438,2]
[357682994,1744330248549,-262.9428856,0.00016438,2]
[357682995,1744330248559,-1168.64,0.00016438,2]
[357682996,1744330248569,-500.0,0.00016438,2]
[357682997,1744330248579,-500.0,0.00016438,2]
[357682998,1744330248589,-500.0,0.00016438,2]
[357682999,1744330248599,-757.89,0.00016438,2]
[357683000,1744330248608,-500.0,0.00016438,2]
[357683001,1744330248618,-908.03,0.00016438,2]
[357683002,1744330248629,-500.0,0.00016438,2]
[357683003,1744330248641,-500.0,0.00016438,2]
[357683004,1744330248651,-500.0,0.00016438,2]
[357683005,1744330248662,-500.0,0.00016438,2]
[357683006,1744330248672,-560.9,0.00016438,2]
[357683007,1744330248682,-500.0,0.00016438,2]
[357683008,1744330248693,-500.0,0.00016438,2]
[357683009,1744330248703,-273.81983719,0.00016438,2]
[357683010,1744330248712,-500.0,0.00016438,2]
[357683011,1744330248721,-595.03,0.00016438,2]
[357683012,1744330248731,-2796.96,0.00016438,2]
[357683013,1744330248741,-500.0,0.00016438,2]
[357683014,1744330248751,-500.0,0.00016438,2]
[357683015,1744330248761,-500.0,0.00016438,2]
[357683016,1744330248772,-500.0,0.00016438,2]
[357683017,1744330248782,-500.0,0.00016438,2]
[357683018,1744330248791,-2516.27,0.00016438,2]
[357683019,1744330248802,-317.80668087,0.00016438,2]
[357683020,1744330248812,-500.0,0.00016438,2]
[357683021,1744330248823,-500.0,0.00016438,2]
[357683022,1744330248832,-500.0,0.00016438,2]
[357683023,1744330248842,-500.0,0.00016438,2]
[357683024,1744330248852,-500.0,0.00016438,2]
[357683025,1744330248862,-1155.59,0.00016438,2]
[357683026,1744330248872,-1577.87,0.00016438,2]
[357683027,1744330248882,-622.81,0.00016438,2]
[357683028,1744330248893,-1425.79,0.00016438,2]
[357683029,1744330248903,-507.7609613,0.00016438,2]
[357683030,1744330248913,-500.0,0.00016438,2]
[357683031,1744330248924,-2806.05,0.00016438,2]
[357683032,1744330248937,-1146.25497517,0.00016438,2]
[357683033,1744330248979,-246.99502483,0.00016438,2]
[357683034,1744330248989,-29.36114618,0.00016438,2]
[357683139,1744331432160,-250.0,0.0001532,2]
[357683141,1744331432172,-73.31466187,0.00015699,2]
[357683243,1744331440702,-426.68533813,0.00015699,2]
[357683245,1744331440712,-9.61047632,0.00015699,2]
[357683247,1744331440724,-157.58711689,0.00015699,2]
[357683249,1744331440733,-300.0,0.00015699,2]
[357683251,1744331440743,-243.8763499,0.00015699,2]
[357683253,1744331440755,-56.1236501,0.00015699,2]
[357683255,1744331440765,-205.4223499,0.000157,2]
[357683311,1744331446412,-85276.96891982,0.000157,2]
[357683393,1744332632356,-300.0,0.00015586,2]
[357683394,1744332632366,-300.0,0.00015588,2]
[357683395,1744332632375,-250.0,0.000156,2]
[357683396,1744332632390,-250.0,0.000156,2]
[357683397,1744332632400,-153.69044394,0.000156,2]
[357683398,1744332632411,-2309.63608954,0.000156,2]
[357683399,1744332632421,-180.36399116,0.00015699,2]
[357683400,1744332632431,-500.0,0.00015699,2]
[357683401,1744332632441,-477.8299193,0.000157,2]
[357683434,1744332638527,-500.0,0.00015586,2]
[357683436,1744332638537,-500.0,0.00015586,2]
[357683438,1744332638547,-500.0,0.00015586,2]
[357683440,1744332638557,-500.0,0.00015586,2]
[357683442,1744332638566,-457.41046471,0.00015586,2]
[357683444,1744332638577,-522.1700807,0.000157,2]
[357683446,1744332638586,-20931.84442202,0.000157,2]
[357683824,1744332643380,-2019.31092908,0.000157,2]
[357683873,1744332644055,-167048.8446489,0.000157,2]
[357683875,1744332644065,-180.4249842,0.00015944,2]
[357683878,1744332644075,-12519.14458507,0.00016061,2]
[357683880,1744332644084,-160.0,0.00016061,2]
[357683882,1744332644093,-419.64641374,0.00016061,2]
[357683884,1744332644103,-160.0,0.00016301,2]
[357683886,1744332644113,-231.18073448,0.0001633,2]
[357683888,1744332644122,-1616.49634181,0.0001633,2]
[357683890,1744332644132,-720.59,0.000164,2]
[357683892,1744332644141,-200.0,0.00016428,2]
[357683894,1744332644151,-151.0,0.00016428,2]
[357683896,1744332644160,-12111.27845169,0.0001643,2]
[357683898,1744332644169,-2398.20530841,0.0001643,3]
[357683900,1744332644179,-73644.99057957,0.0001643,2]
[357683902,1744332644188,-300.0,0.0001643,2]
[357683904,1744332644198,-500.53,0.00016434,2]
[357683906,1744332644208,-500.0,0.00016438,2]
[357683908,1744332644217,-499.0,0.00016438,2]
[357683910,1744332644226,-500.0,0.00016438,2]
[357683913,1744332644240,-500.0,0.00016438,2]
[357683915,1744332644249,-500.0,0.00016438,2]
[357683917,1744332644260,-500.0,0.00016438,2]
[357683919,1744332644270,-500.0,0.00016438,2]
[357683921,1744332644279,-579.11085035,0.00016438,2]
[357683923,1744332644289,-865.73,0.00016438,2]
[357683925,1744332644298,-1251.82,0.00016438,2]
[357683927,1744332644308,-500.0,0.00016438,2]
[357683929,1744332644317,-500.0,0.00016438,2]
[357683931,1744332644326,-500.0,0.00016438,2]
[357683933,1744332644336,-500.0,0.00016438,2]
[357683935,1744332644346,-500.0,0.00016438,2]
[357683936,1744332644355,-599.27,0.00016438,2]
[357683939,1744332644365,-500.0,0.00016438,2]
[357683941,1744332644374,-500.0,0.00016438,2]
[357683943,1744332644383,-570.69,0.00016438,2]
[357683945,1744332644393,-263.2990647,0.00016438,2]
[357683947,1744332644403,-500.0,0.00016438,2]
[357683949,1744332644412,-500.0,0.00016438,2]
[357683951,1744332644421,-500.0,0.00016438,2]
[357683953,1744332644430,-822.09,0.00016438,2]
[357683955,1744332644440,-500.0,0.00016438,2]
[357683957,1744332644449,-500.0,0.00016438,2]
[357683959,1744332644459,-500.0,0.00016438,2]
[357683961,1744332644468,-500.0,0.00016438,2]
[357683962,1744332644478,-500.0,0.00016438,2]
[357683964,1744332644487,-500.0,0.00016438,2]
[357683966,1744332644496,-500.0,0.00016438,2]
[357683968,1744332644507,-500.0,0.00016438,2]
[357683970,1744332644516,-500.0,0.00016438,2]
[357683972,1744332644526,-780.46,0.00016438,2]
[357683974,1744332644536,-911.25,0.00016438,2]
[357683976,1744332644545,-502.39504369,0.00016438,2]
[357683978,1744332644555,-500.0,0.00016438,2]
[357683980,1744332644565,-500.0,0.00016438,2]
[357683982,1744332644575,-500.0,0.00016438,2]
[357683984,1744332644586,-500.0,0.00016438,2]
[357683986,1744332644596,-500.0,0.00016438,2]
[357683988,1744332644606,-500.0,0.00016438,2]
[357683991,1744332644616,-500.0,0.00016438,2]
[357683993,1744332644626,-500.0,0.00016438,2]
[357683995,1744332644636,-500.0,0.00016438,2]
[357683997,1744332644648,-500.0,0.00016438,2]
[357683999,1744332644658,-241.95831524,0.00016438,2]
[357684001,1744332644668,-151.0,0.00016438,2]
[357684003,1744332644677,-559.52867172,0.00016438,2]
[357684005,1744332644687,-151.0,0.00016438,2]
[357684007,1744332644697,-151.0,0.00016438,2]
[357684009,1744332644706,-151.0,0.00016438,2]
[357684011,1744332644715,-151.0,0.00016438,2]
[357684013,1744332644726,-151.0,0.00016438,2]
[357684015,1744332644736,-500.0,0.00016438,2]
[357684017,1744332644747,-151.0,0.00016438,2]
[357684019,1744332644756,-263.632462,0.00016438,2]
[357684021,1744332644765,-513.10056617,0.00016438,2]
[357684023,1744332644775,-539.27322492,0.00016438,2]
[357684025,1744332644784,-500.0,0.00016438,2]
[357684027,1744332644794,-500.0,0.00016438,2]
[357684029,1744332644803,-454.04539319,0.00016438,2]
[357684044,1744332644932,-300.0,0.00016438,2]
[357684046,1744332644943,-500.0,0.00016438,2]
[357684048,1744332644953,-500.0,0.00016438,2]
[357684050,1744332644962,-500.0,0.00016438,2]
[357684052,1744332644972,-500.0,0.00016438,2]
[357684054,1744332644981,-500.0,0.00016438,2]
[357684056,1744332644992,-500.0,0.00016438,2]
[357684058,1744332645002,-500.0,0.00016438,2]
[357684060,1744332645011,-500.0,0.00016438,2]
[357684062,1744332645021,-500.0,0.00016438,2]
[357684064,1744332645030,-500.0,0.00016438,2]
[357684066,1744332645040,-500.0,0.00016438,2]
[357684068,1744332645048,-500.0,0.00016438,2]
[357684070,1744332645058,-500.0,0.00016438,2]
[357684072,1744332645067,-500.0,0.00016438,2]
[357684074,1744332645077,-1232.99,0.00016438,2]
[357684076,1744332645086,-588.16,0.00016438,2]
[357684078,1744332645096,-500.0,0.00016438,2]
[357684080,1744332645105,-281.097008,0.00016438,2]
[357684082,1744332645115,-500.0,0.00016438,2]
[357684085,1744332645125,-517.35287095,0.00016438,2]
[357684086,1744332645134,-500.0,0.00016438,2]
[357684089,1744332645144,-500.0,0.00016438,2]
[357684090,1744332645153,-500.0,0.00016438,2]
[357684093,1744332645164,-500.0,0.00016438,2]
[357684095,1744332645173,-500.0,0.00016438,2]
[357684097,1744332645183,-500.0,0.00016438,2]
[357684099,1744332645193,-500.0,0.00016438,2]
[357684101,1744332645202,-507.17,0.00016438,2]
[357684103,1744332645211,-500.0,0.00016438,2]
[357684105,1744332645221,-500.0,0.00016438,2]
[357684107,1744332645230,-547.54111987,0.00016438,2]
[357684109,1744332645240,-500.0,0.00016438,2]
[357684111,1744332645249,-357.46368695,0.00016438,2]
[357684113,1744332645259,-521.36792255,0.00016438,2]
[357684115,1744332645268,-500.0,0.00016438,2]
[357684117,1744332645278,-1079.66,0.00016438,2]
[357684119,1744332645287,-500.0,0.00016438,2]
[357684121,1744332645297,-1430.67,0.00016438,2]
[357684123,1744332645306,-500.0,0.00016438,2]
[357684125,1744332645315,-500.0,0.00016438,2]
[357684127,1744332645324,-1119.95,0.00016438,2]
[357684129,1744332645334,-625.16,0.00016438,2]
[357684131,1744332645343,-500.0,0.00016438,2]
[357684133,1744332645353,-500.0,0.00016438,2]
[357684135,1744332645363,-500.0,0.00016438,2]
[357684137,1744332645372,-686.77,0.00016438,2]
[357684139,1744332645381,-500.0,0.00016438,2]
[357684141,1744332645391,-2680.42,0.00016438,2]
[357684143,1744332645400,-448.42559843,0.00016438,2]
[357684145,1744332645410,-500.0,0.00016438,2]
[357684147,1744332645420,-500.0,0.00016438,2]
[357684149,1744332645430,-500.0,0.00016438,2]
[357684151,1744332645440,-500.0,0.00016438,2]
[357684154,1744332645449,-500.0,0.00016438,2]
[357684156,1744332645459,-596.86,0.00016438,2]
[357684158,1744332645468,-500.0,0.00016438,2]
[357684160,1744332645478,-2411.42,0.00016438,2]
[357684162,1744332645487,-500.0,0.00016438,2]
[357684164,1744332645497,-517.32478179,0.00016438,2]
[357684166,1744332645507,-500.0,0.00016438,2]
[357684168,1744332645516,-500.0,0.00016438,2]
[357684170,1744332645525,-687.7,0.00016438,2]
[357684172,1744332645535,-238.94,0.00016438,2]
[357684174,1744332645545,-500.0,0.00016438,2]
[357684176,1744332645554,-500.0,0.00016438,2]
[357684178,1744332645564,-500.0,0.00016438,2]
[357684180,1744332645574,-500.0,0.00016438,2]
[357684182,1744332645583,-902.62,0.00016438,2]
[357684184,1744332645593,-2689.13,0.00016438,2]
[357684186,1744332645603,-500.0,0.00016438,2]
[357684188,1744332645613,-785.7,0.00016438,2]
[357684190,1744332645623,-500.0,0.00016438,2]
[357684192,1744332645633,-500.0,0.00016438,2]
[357684194,1744332645643,-500.0,0.00016438,2]
[357684196,1744332645656,-500.0,0.00016438,2]
[357684198,1744332645665,-500.0,0.00016438,2]
[357684200,1744332645674,-246.71621029,0.00016438,2]
[357684202,1744332645684,-603.56977152,0.00016438,2]
[357684204,1744332645694,-500.0,0.00016438,2]
[357684206,1744332645703,-5675.99,0.00016438,2]
[357684208,1744332645713,-500.0,0.00016438,2]
[357684211,1744332645726,-500.0,0.00016438,2]
[357684213,1744332645736,-870.2,0.00016438,2]
[357684215,1744332645746,-500.0,0.00016438,2]
[357684217,1744332645755,-500.0,0.00016438,2]
[357684219,1744332645765,-500.0,0.00016438,2]
[357684221,1744332645775,-500.0,0.00016438,2]
[357684223,1744332645785,-431.9946173,0.00016438,2]
[357684225,1744332645794,-500.0,0.00016438,2]
[357684227,1744332645804,-500.0,0.00016438,2]
[357684229,1744332645813,-500.0,0.00016438,2]
[357684231,1744332645823,-597.88,0.00016438,2]
[357684233,1744332645832,-500.0,0.00016438,2]
[357684235,1744332645842,-151.0,0.00016438,2]
[357684237,1744332645852,-151.0,0.00016438,2]
[357684239,1744332645861,-151.0,0.00016438,2]
[357684241,1744332645871,-500.0,0.00016438,2]
[357684243,1744332645880,-151.0,0.00016438,2]
[357684245,1744332645889,-151.0,0.00016438,2]
[357684249,1744332645899,-500.0,0.00016438,2]
[357684251,1744332645908,-626.25,0.00016438,2]
[357684254,1744332645917,-500.0,0.00016438,2]
[357684256,1744332645927,-500.0,0.00016438,2]
[357684258,1744332645936,-892.18,0.00016438,2]
[357684260,1744332645946,-500.0,0.00016438,2]
[357684262,1744332645955,-500.0,0.00016438,2]
[357684264,1744332645964,-500.0,0.00016438,2]
[357684266,1744332645974,-500.0,0.00016438,2]
[357684268,1744332645984,-617.81127581,0.00016438,2]
[357684271,1744332645994,-500.0,0.00016438,2]
[357684273,1744332646003,-682.01,0.00016438,2]
[357684275,1744332646013,-500.0,0.00016438,2]
[357684277,1744332646023,-151.0,0.00016438,2]
[357684279,1744332646032,-151.0,0.00016438,2]
[357684281,1744332646042,-151.0,0.00016438,2]
[357684283,1744332646052,-151.0,0.00016438,2]
[357684284,1744332646061,-151.0,0.00016438,2]
[357684285,1744332646070,-151.0,0.00016438,2]
[357684286,1744332646079,-151.0,0.00016438,2]
[357684287,1744332646088,-151.0,0.00016438,2]
[357684288,1744332646098,-151.0,0.00016438,2]
[357684289,1744332646107,-157.799996,0.00016438,2]
[357684290,1744332646116,-500.0,0.00016438,2]
[357684291,1744332646126,-500.0,0.00016438,2]
[357684292,1744332646135,-2060.38,0.00016438,2]
[357684293,1744332646145,-500.0,0.00016438,2]
[357684294,1744332646155,-401.0,0.00016438,2]
[357684295,1744332646164,-605.05,0.00016438,2]
[357684296,1744332646173,-500.0,0.00016438,2]
[357684297,1744332646183,-500.0,0.00016438,2]
[357684298,1744332646192,-500.0,0.00016438,2]
[357684299,1744332646202,-2354.26,0.00016438,2]
[357684300,1744332646211,-500.0,0.00016438,2]
[357684301,1744332646221,-500.0,0.00016438,2]
[357684302,1744332646230,-622.34,0.00016438,2]
[357684303,1744332646240,-1017.63,0.00016438,2]
[357684304,1744332646250,-500.0,0.00016438,2]
[357684305,1744332646259,-500.0,0.00016438,2]
[357684306,1744332646269,-938.97,0.00016438,2]
[357684307,1744332646278,-500.0,0.00016438,2]
[357684308,1744332646287,-317.19166838,0.00016438,2]
[357684309,1744332646297,-500.0,0.00016438,2]
[357684310,1744332646306,-500.0,0.00016438,2]
[357684311,1744332646316,-618.93814023,0.00016438,2]
[357684312,1744332646326,-500.0,0.00016438,2]
[357684313,1744332646335,-500.0,0.00016438,2]
[357684314,1744332646344,-500.0,0.00016438,2]
[357684315,1744332646354,-658.07,0.00016438,2]
[357684316,1744332646363,-500.0,0.00016438,2]
[357684317,1744332646373,-191.02573311,0.00016438,2]
[357684318,1744332646382,-500.0,0.00016438,2]
[357684319,1744332646506,-500.0,0.00016438,2]
[357684320,1744332646517,-500.0,0.00016438,2]
[357684321,1744332646527,-151.0,0.00016438,2]
[357684322,1744332646537,-151.0,0.00016438,2]
[357684324,1744332646546,-151.0,0.00016438,2]
[357684326,1744332646555,-151.0,0.00016438,2]
[357684328,1744332646565,-500.0,0.00016438,2]
[357684330,1744332646574,-151.0,0.00016438,2]
[357684333,1744332646585,-195.614009,0.00016438,2]
[357684335,1744332646594,-1373.8,0.00016438,2]
[357684337,1744332646604,-753.79,0.00016438,2]
[357684340,1744332646613,-1265.29,0.00016438,2]
[357684342,1744332646623,-500.0,0.00016438,2]
[357684343,1744332646632,-820.1,0.00016438,2]
[357684344,1744332646642,-500.0,0.00016438,2]
[357684345,1744332646654,-500.0,0.00016438,2]
[357684346,1744332646663,-500.0,0.00016438,2]
[357684347,1744332646673,-584.98,0.00016438,2]
[357684348,1744332646682,-500.0,0.00016438,2]
[357684349,1744332646692,-541.37044304,0.00016438,2]
[357684350,1744332646702,-1800.19,0.00016438,2]
[357684351,1744332646711,-151.0,0.00016438,2]
[357684352,1744332646721,-151.0,0.00016438,2]
[357684353,1744332646731,-151.0,0.00016438,2]
[357684354,1744332646742,-500.0,0.00016438,2]
[357684355,1744332646751,-566.39878122,0.00016438,2]
[357684356,1744332646761,-151.0,0.00016438,2]
[357684357,1744332646771,-500.0,0.00016438,2]
[357684358,1744332646780,-151.0,0.00016438,2]
[357684359,1744332646790,-151.0,0.00016438,2]
[357684360,1744332646800,-204.8553,0.00016438,2]
[357684361,1744332646810,-500.0,0.00016438,2]
[357684362,1744332646819,-151.0,0.00016438,2]
[357684363,1744332646828,-151.0,0.00016438,2]
[357684364,1744332646838,-151.0,0.00016438,2]
[357684365,1744332646847,-151.0,0.00016438,2]
[357684366,1744332646856,-151.0,0.00016438,2]
[357684368,1744332646866,-500.0,0.00016438,2]
[357684370,1744332646875,-500.0,0.00016438,2]
[357684372,1744332646884,-500.0,0.00016438,2]
[357684374,1744332646894,-508.82,0.00016438,2]
[357684376,1744332646904,-500.0,0.00016438,2]
[357684379,1744332646914,-500.0,0.00016438,2]
[357684381,1744332646923,-500.0,0.00016438,2]
[357684383,1744332646932,-500.0,0.00016438,2]
[357684385,1744332646942,-500.0,0.00016438,2]
[357684387,1744332646951,-965.93,0.00016438,2]
[357684389,1744332646960,-500.0,0.00016438,2]
[357684391,1744332646970,-622.37,0.00016438,2]
[357684392,1744332646980,-500.0,0.00016438,2]
[357684394,1744332646991,-964.69,0.00016438,2]
[357684396,1744332647000,-1069.32,0.00016438,2]
[357684398,1744332647009,-500.0,0.00016438,2]
[357684400,1744332647019,-1504.79,0.00016438,2]
[357684402,1744332647028,-511.21447859,0.00016438,2]
[357684404,1744332647038,-626.21,0.00016438,2]
[357684406,1744332647047,-500.0,0.00016438,2]
[357684408,1744332647057,-500.0,0.00016438,2]
[357684411,1744332647066,-522.1,0.00016438,2]
[357684412,1744332647075,-500.0,0.00016438,2]
[357684415,1744332647085,-500.0,0.00016438,2]
[357684417,1744332647094,-500.0,0.00016438,2]
[357684419,1744332647103,-984.02,0.00016438,2]
[357684421,1744332647113,-500.0,0.00016438,2]
[357684423,1744332647122,-526.47621233,0.00016438,2]
[357684425,1744332647132,-500.0,0.00016438,2]